Workbook

Sheet Points
B3: Use Interpolate
B5: Idea of LLCR Factor to Make Curved

Sheet Curved DSCR
A1: Inputs
G2: EIRR | H2: Avg Loan Life | R2: Basic Idea: Increase the Slope and Longer Average Life
C3: Min DSCR | D3: 1.2 | F3: Sloped DSCR | G3: =D52 -> 0.3328592598 | H3: =F40 -> 4.044816179
C4: Debt Percent | D4: 0.82 | F4: Flat DSCR | G4: =Flat!D23 -> 0.1589389763 | H4: =Flat!D20 -> 7.854971411 | R4: Just find until meets criteria
C5: Project Cost | D5: 900 | R5: Not need to be actual
C6: Target Debt Amount | D6: =D5*D4 -> 738
C7: PV of CFADS | D7: =D32 -> 793.2138958 | R7: Demonstrate with solver
C8: LLCR | D8: =D7/D6 -> 1.074815577 | J8: Difference
C9: Target Avg Debt Life | D9: 8.5 | E9: =F40 -> 4.044816179 | G9: Average Life | J9: =D9-E9 -> 4.455183821 | R9: Input boundaries: LLCR Factor
C10: LLCR Factor | D10: 2 | G10: Debt Balance | J10: =D31-D6 -> 107.4032911
C11: Tenure | D11: 12 | G11: PV CFADS | J11: =F31 -> -312.6457476
C12: Max LLCR Factor | D12: 10
C13: EBITDA | E13: =E20 -> 90 | F13: 94.5 | G13: 99.225 | H13: 104.18625 | I13: 109.3955625 | J13: 114.8653406 | K13: 120.6086077 | L13: 126.639038 | M13: 132.9709899 | N13: 139.6195394 | O13: 146.6005164 | P13: 153.9305422
C14: Period | D14: 1 | E14: 12 | F14: last date | R14: Start with Most Extreme Slope
C15: Max/Min DSCR | D15: =LLCR*LLCR_Fac -> 2.149631154 | E15: =Min_DSCR -> 1.2 | R15: Goal Seek on End Date to Find
C16: Tax Rate | D16: 0.25 | R16: If too much debt in extreme case, increase the LLCR or exit function
R18: Increment the LLCR until projected debt is below target
A19: Target Debt Service | E19: 1 | F19: 2 | G19: 3 | H19: 4 | I19: 5 | J19: 6 | K19: 7 | L19: 8 | M19: 9 | N19: 10 | O19: 11 | P19: 12 | R19: Once the computed debt is below the target debt, make a dynamic goal seek until the computed = target
C20: EBITDA | E20: 90 | F20: =E20*1.05 -> 94.5 | G20: =F20*1.05 -> 99.225 | H20: 104.18625 | I20: 109.3955625 | J20: 114.8653406 | K20: 120.6086077 | L20: 126.639038 | M20: 132.9709899 | N20: 139.6195394 | O20: 146.6005164 | P20: 153.9305422 | R20: Check the Average loan life. If the computed loan life is more than the target, then reduce the LLCR Factor and repeat the process
C21: Less: Interest | E21: =E38 -> 36.9 | F21: =F38 -> 36.96039151 | G21: 36.84352656 | H21: 36.52298706 | I21: 35.96943197 | J21: 35.15032265 | K21: 34.02962722 | L21: 32.56750288 | M21: 30.71995551 | N21: 28.4384757 | O21: 25.66965072 | P21: 22.35475204
C22: EBT | E22: =E20-E21 -> 53.1 | F22: =F20-F21 -> 57.53960849 | G22: 62.38147344 | H22: 67.66326294 | I22: 73.42613053 | J22: 79.71501797 | K22: 86.57898043 | L22: 94.07153516 | M22: 102.2510344 | N22: 111.1810637 | O22: 120.9308657 | P22: 131.5757902
C23: Taxes | D23: =D16 -> 0.25 | E23: =E22*$D$23 -> 13.275 | F23: =F22*$D$23 -> 14.38490212 | G23: 15.59536836 | H23: 16.91581574 | I23: 18.35653263 | J23: 19.92875449 | K23: 21.64474511 | L23: 23.51788379 | M23: 25.56275861 | N23: 27.79526593 | O23: 30.23271642 | P23: 32.89394755
C24: CFADS | E24: =E20-E23 -> 76.725 | F24: =F20-F23 -> 80.11509788 | G24: 83.62963164 | H24: 87.27043426 | I24: 91.03902987 | J24: 94.93658613 | K24: 98.96386255 | L24: 103.1211542 | M24: 107.4082313 | N24: 111.8242735 | O24: 116.3678 | P24: 121.0365947
C25: DSCR Target with Lookup | E25: =interpolate_look_up(E19,14:14,15:15) -> 2.149631154 | F25: =interpolate_look_up(F19,14:14,15:15) -> 2.038671907 | G25: =interpolate_look_up(G19,14:14,15:15) -> 1.933440133 | H25: =interpolate_look_up(H19,14:14,15:15) -> 1.833640192 | I25: =interpolate_look_up(I19,14:14,15:15) -> 1.738991706 | J25: =interpolate_look_up(J19,14:14,15:15) -> 1.649228767 | K25: =interpolate_look_up(K19,14:14,15:15) -> 1.564099194 | L25: =interpolate_look_up(L19,14:14,15:15) -> 1.483363823 | M25: =interpolate_look_up(M19,14:14,15:15) -> 1.406795835 | N25: =interpolate_look_up(N19,14:14,15:15) -> 1.334180118 | O25: =interpolate_look_up(O19,14:14,15:15) -> 1.265312666 | P25: =interpolate_look_up(P19,14:14,15:15) -> 1.2
C26: Target Debt Service | D26: =MAX(D8,D3) -> 1.2 | E26: =E24/E25 -> 35.69216973 | F26: =F24/F25 -> 39.29769062 | G26: =G24/G25 -> 43.2543166 | H26: =H24/H25 -> 47.59408887 | I26: =I24/I25 -> 52.35161821 | J26: =J24/J25 -> 57.56423126 | K26: =K24/K25 -> 63.27211403 | L26: =L24/L25 -> 69.51845034 | M26: =M24/M25 -> 76.34955172 | N26: =N24/N25 -> 83.8149752 | O26: =O24/O25 -> 91.96762441 | P26: =P24/P25 -> 100.8638289
C28: Interest Rate | D28: 0.05
D30: Fixed | E30: Computed | F30: Difference
C31: PV of Debt Service | D31: =NPV(Int_rate,E24:P24) -> 845.4032911 | E31: =NPV(Int_rate,E26:P26) -> 532.7575435 | F31: =E31-D31 -> -312.6457476 | R31: Allow with flat or growth interpolate
C32: PV of CFADS | D32: 793.2138958 | E32: =NPV(Int_rate,E24:P24) -> 845.4032911 | F32: =E32-D32 -> 52.18939531
A34: Debt Balance
C35: Opening Balance | E35: =D37 -> 738 | F35: =E37 -> 739.2078303 | G35: 736.8705312 | H35: 730.4597411 | I35: 719.3886393 | J35: 703.0064531 | K35: 680.5925445 | L35: 651.3500576 | M35: 614.3991102 | N35: 568.769514 | O35: 513.3930145 | P35: 447.0950408
C36: Less: Repayment | E36: =E26-E38 -> -1.207830272 | F36: =F26-F38 -> 2.337299109 | G36: 6.410790044 | H36: 11.07110181 | I36: 16.38218625 | J36: 22.4139086 | K36: 29.24248681 | L36: 36.95094746 | M36: 45.62959621 | N36: 55.3764995 | O36: 66.29797369 | P36: 78.50907686
C37: Closing Balance | D37: =D6 -> 738 | E37: =E35-E36 -> 739.2078303 | F37: =F35-F36 -> 736.8705312 | G37: 730.4597411 | H37: 719.3886393 | I37: 703.0064531 | J37: 680.5925445 | K37: 651.3500576 | L37: 614.3991102 | M37: 568.769514 | N37: 513.3930145 | O37: 447.0950408 | P37: 368.5859639 | R37: Demonstrate with
C38: Interest | D38: =D28 -> 0.05 | E38: =$D$38*E35 -> 36.9 | F38: =$D$38*F35 -> 36.96039151 | G38: 36.84352656 | H38: 36.52298706 | I38: 35.96943197 | J38: 35.15032265 | K38: 34.02962722 | L38: 32.56750288 | M38: 30.71995551 | N38: 28.4384757 | O38: 25.66965072 | P38: 22.35475204
R39: Outside is LLCR Factor
C40: Average Loan Life with Sumproduct | F40: =SUMPRODUCT(E36:P36,E19:P19)/D31 -> 4.044816179 | R40: Inside is last date
C42: Sum of Opening Balance/Initial | E42: =SUM(E35:P35) -> 7842.532476 | F42: =SUM(E35:P35)/D37 -> 10.62673777 | R42: Start with high LLCR Factor
R43: Move down until hit Averge loan life or 1
R44: Each time re-run the debt sizing function
R46: If 1 then stop
R47: If hit, then reverse the process
C51: Equity CF | D51: =D37-D5 -> -162 | E51: =E20-E36-E38 -> 54.30783027 | F51: =F20-F36-F38 -> 55.20230938 | G51: =G20-G36-G38 -> 55.9706834 | H51: =H20-H36-H38 -> 56.59216113 | I51: =I20-I36-I38 -> 57.04394429 | J51: =J20-J36-J38 -> 57.30110937 | K51: =K20-K36-K38 -> 57.33649363 | L51: =L20-L36-L38 -> 57.1205877 | M51: =M20-M36-M38 -> 56.62143822 | N51: =N20-N36-N38 -> 55.80456424 | O51: =O20-O36-O38 -> 54.632892 | P51: =P20-P36-P38 -> 53.06671333
C52: IRR | D52: =IRR(51:51) -> 0.3328592598
C54: Average DSCR | D54: =AVERAGE(25:25) -> 1.633112958
C57: PV Factor | D57: =D28 -> 0.05 | E57: =1/(1+$D$57)^E19 -> 0.9523809524 | F57: =1/(1+$D$57)^F19 -> 0.9070294785 | G57: =1/(1+$D$57)^G19 -> 0.8638375985 | H57: =1/(1+$D$57)^H19 -> 0.8227024748 | I57: =1/(1+$D$57)^I19 -> 0.7835261665 | J57: =1/(1+$D$57)^J19 -> 0.7462153966 | K57: =1/(1+$D$57)^K19 -> 0.7106813301 | L57: =1/(1+$D$57)^L19 -> 0.676839362 | M57: =1/(1+$D$57)^M19 -> 0.6446089162 | N57: =1/(1+$D$57)^N19 -> 0.6139132535 | O57: =1/(1+$D$57)^O19 -> 0.5846792891 | P57: =1/(1+$D$57)^P19 -> 0.5568374182
A59: =D8 -> 1.074815577 | C59: Debt PV | E59: =E57*E35 -> 702.8571429 | F59: =F57*F35 -> 670.4832928 | G59: 636.5364701 | H59: 600.9510368 | I59: 563.6598228 | J59: 524.5942392 | K59: 483.6844148 | L59: 440.8593575 | M59: 396.0471445 | N59: 349.1751428 | O59: 300.1702627 | P59: 248.9592482
C60: Weighting | E60: =E59/SUM(59:59) -> 0.1187448761 | F60: =F59/SUM(59:59) -> 0.1132754449 | G60: 0.1075402663 | H60: 0.101528251 | I60: 0.09522805097 | J60: 0.08862807838 | K60: 0.08171652874 | L60: 0.07448140824 | M60: 0.06691056582 | N60: 0.0589917304 | O60: 0.05071255379 | P60: 0.04206065967
C61: Weighted Average | E61: =SUMPRODUCT(60:60,25:25) -> 1.717817778
C63: CFADS PV | E63: =E57*E20 -> 85.71428571 | F63: =F57*F20 -> 85.71428571 | G63: =G57*G20 -> 85.71428571 | H63: =H57*H20 -> 85.71428571 | I63: =I57*I20 -> 85.71428571 | J63: =J57*J20 -> 85.71428571 | K63: =K57*K20 -> 85.71428571 | L63: =L57*L20 -> 85.71428571 | M63: =M57*M20 -> 85.71428571 | N63: =N57*N20 -> 85.71428571 | O63: =O57*O20 -> 85.71428571 | P63: =P57*P20 -> 85.71428571
C64: Weighting | E64: =E63/SUM(63:63) -> 0.08333333333 | F64: =F63/SUM(63:63) -> 0.08333333333 | G64: 0.08333333333 | H64: 0.08333333333 | I64: 0.08333333333 | J64: 0.08333333333 | K64: 0.08333333333 | L64: 0.08333333333 | M64: 0.08333333333 | N64: 0.08333333333 | O64: 0.08333333333 | P64: 0.08333333333
C65: Weighted Average | E65: =SUMPRODUCT(64:64,25:25) -> 1.633112958
E67: =Flat!E22 -> 25.425 | F67: =Flat!F22 -> 26.69625 | G67: =Flat!G22 -> 28.0310625 | H67: =Flat!H22 -> 29.43261562 | I67: =Flat!I22 -> 30.90424641 | J67: =Flat!J22 -> 32.44945873 | K67: =Flat!K22 -> 34.07193166 | L67: =Flat!L22 -> 35.77552825 | M67: =Flat!M22 -> 37.56430466 | N67: =Flat!N22 -> 39.44251989 | O67: =Flat!O22 -> 41.41464589 | P67: =Flat!P22 -> 43.48537818
C69: LLCR | D69: =D7/D31 -> 0.9382668652
C71: Debt Service | E71: =E26*E57 -> 33.9925426 | F71: =F26*F57 -> 35.64416383 | G71: 37.36470498 | H71: 39.1557747 | I71: 41.01886273 | J71: 42.95531566 | K71: 44.96631016 | L71: 47.05282358 | M71: 49.21560179 | N71: 51.45512412 | O71: 53.77156526 | P71: 56.16475407
C72: Weight | E72: =E71/SUM(71:71) -> 0.06380490153 | F72: =F71/SUM(71:71) -> 0.06690503826 | G72: 0.07013453951 | H72: 0.07349642474 | I72: 0.07699349025 | J72: 0.08062826362 | K72: 0.08440295348 | L72: 0.08831939435 | M72: 0.09237898626 | N72: 0.09658262891 | O72: 0.1009306502 | P72: 0.1054227289
C73: Weighted Average | D73: =SUMPRODUCT(72:72,25:25) -> 1.586844338

Sheet Test
A2: LLCR Factor | B2: 8 | C2: Average Life | D2: 9.341829552 | E2: Increment | F2: 1 | G2: Reducing | H2: Prior Increment | I2: 1 | J2: Reduce: Base, Not Reversed | K2: 0
A3: LLCR Factor | B3: 7 | C3: Average Life | D3: 9.33380164 | E3: Increment | F3: 1 | G3: Reducing | H3: Prior Increment | I3: 1 | J3: Reduce: Base, Not Reversed | K3: 0
A4: LLCR Factor | B4: 6 | C4: Average Life | D4: 9.324506897 | E4: Increment | F4: 1 | G4: Reducing | H4: Prior Increment | I4: 1 | J4: Reduce: Base, Not Reversed | K4: 0
A5: LLCR Factor | B5: 5 | C5: Average Life | D5: 9.312844693 | E5: Increment | F5: 1 | G5: Reducing | H5: Prior Increment | I5: 1 | J5: Reduce: Base, Not Reversed | K5: 0
A6: LLCR Factor | B6: 4 | C6: Average Life | D6: 9.297732983 | E6: Increment | F6: 1 | G6: Reducing | H6: Prior Increment | I6: 1 | J6: Reduce: Base, Not Reversed | K6: 0
A7: LLCR Factor | B7: 3 | C7: Average Life | D7: 9.270133504 | E7: Increment | F7: 1 | G7: Reducing | H7: Prior Increment | I7: 1 | J7: Reduce: Base, Not Reversed | K7: 0
A8: LLCR Factor | B8: 2 | C8: Average Life | D8: 9.212992043 | E8: Increment | F8: 1 | G8: Reducing | H8: Prior Increment | I8: 1 | J8: Reduce: Base, Not Reversed | K8: 0
A9: LLCR Factor | B9: 1.5 | C9: Average Life | D9: 9.066478829 | E9: Increment | F9: 0.5 | G9: Reducing | H9: Prior Increment | I9: 1 | J9: Reduce: Cut Difference | K9: 1
A10: LLCR Factor | B10: 1.625 | C10: Average Life | D10: 8.824038499 | E10: Increment | F10: 0.125 | G10: Increasing | H10: Prior Increment | I10: 0.5 | J10: Increase: Reversed Base , LLCR Reduce True | K10: 2 | L10: 4
A11: LLCR Factor | B11: 1.75 | C11: Average Life | D11: 8.91360752 | E11: Increment | F11: 0.125 | G11: Increasing | H11: Prior Increment | I11: 0.125 | J11: Increase: Reversed Base , LLCR Reduce True | K11: 2 | L11: 4

Sheet Flat
C2: Min DSCR | D2: =Min_DSCR -> 1.2
C4: Project | D4: 900
C5: Max Debt | D5: =Max_Debt -> 738
C6: PV of CFADS | D6: =NPV(D13,E11:P11) -> 1028.571429
C7: LLCR | D7: =D6/D5 -> 1.393728223
C8: Target Avg Loan Life | D8: 9
E10: 1 | F10: 2 | G10: 3 | H10: 4 | I10: 5 | J10: 6 | K10: 7 | L10: 8 | M10: 9 | N10: 10 | O10: 11 | P10: 12
C11: CFADS | E11: ='Curved DSCR'!E20 -> 90 | F11: =E11*1.05 -> 94.5 | G11: =F11*1.05 -> 99.225 | H11: 104.18625 | I11: 109.3955625 | J11: 114.8653406 | K11: 120.6086077 | L11: 126.639038 | M11: 132.9709899 | N11: 139.6195394 | O11: 146.6005164 | P11: 153.9305422
C12: Target | D12: =MAX(D7,D2) -> 1.393728223 | E12: =E11/$D$12 -> 64.575 | F12: =F11/$D$12 -> 67.80375 | G12: 71.1939375 | H12: 74.75363438 | I12: 78.49131609 | J12: 82.4158819 | K12: 86.53667599 | L12: 90.86350979 | M12: 95.40668528 | N12: 100.1770195 | O12: 105.1858705 | P12: 110.4451641
C13: Interest | D13: ='Curved DSCR'!D28 -> 0.05 | E13: =NPV(D13,E12:P12) -> 738
C15: Open | E15: =D17 -> 738 | F15: =E17 -> 710.325 | G15: 678.0375 | H15: 640.7454375 | I15: 598.029075 | J15: 549.4392127 | K15: 494.4952914 | L15: 432.68338 | M15: 363.4540392 | N15: 286.2200558 | O15: 200.3540391 | P15: 105.1858705
C16: Less Repayment | E16: =E12-E18 -> 27.675 | F16: =F12-F18 -> 32.2875 | G16: 37.2920625 | H16: 42.7163625 | I16: 48.58986234 | J16: 54.94392127 | K16: 61.81191142 | L16: 69.22934079 | M16: 77.23398332 | N16: 85.86601675 | O16: 95.16816857 | P16: 105.1858705
C17: Closing | D17: =D5 -> 738 | E17: =E15-E16 -> 710.325 | F17: =F15-F16 -> 678.0375 | G17: 640.7454375 | H17: 598.029075 | I17: 549.4392127 | J17: 494.4952914 | K17: 432.68338 | L17: 363.4540392 | M17: 286.2200558 | N17: 200.3540391 | O17: 105.1858705 | P17: -5.542233339e-13
C18: Interest | D18: =D13 -> 0.05 | E18: =$D$18*E15 -> 36.9 | F18: =$D$18*F15 -> 35.51625 | G18: 33.901875 | H18: 32.03727188 | I18: 29.90145375 | J18: 27.47196063 | K18: 24.72476457 | L18: 21.634169 | M18: 18.17270196 | N18: 14.31100279 | O18: 10.01770195 | P18: 5.259293526
C20: Avg Loan Life | D20: =SUMPRODUCT(E16:P16,E10:P10)/D17 -> 7.854971411
C22: Equity CF | D22: =D17-D4 -> -162 | E22: =E11-E16-E18 -> 25.425 | F22: =F11-F16-F18 -> 26.69625 | G22: 28.0310625 | H22: 29.43261562 | I22: 30.90424641 | J22: 32.44945873 | K22: 34.07193166 | L22: 35.77552825 | M22: 37.56430466 | N22: 39.44251989 | O22: 41.41464589 | P22: 43.48537818
C23: IRR | D23: =IRR(22:22) -> 0.1589389763

Sheet Sculpt
C2: Min DSCR | D2: =Min_DSCR -> 1.2
C4: Project | D4: 900
C5: Max Debt | D5: =Max_Debt -> 738
C6: PV of CFADS | D6: =NPV(D13,E11:P11) -> 1028.571429
C7: LLCR | D7: =D6/D5 -> 1.393728223
C8: Target Avg Loan Life | D8: 9
E10: 1 | F10: 2 | G10: 3 | H10: 4 | I10: 5 | J10: 6 | K10: 7 | L10: 8 | M10: 9 | N10: 10 | O10: 11 | P10: 12
C11: CFADS | E11: ='Curved DSCR'!E20 -> 90 | F11: =E11*1.05 -> 94.5 | G11: =F11*1.05 -> 99.225 | H11: 104.18625 | I11: 109.3955625 | J11: 114.8653406 | K11: 120.6086077 | L11: 126.639038 | M11: 132.9709899 | N11: 139.6195394 | O11: 146.6005164 | P11: 153.9305422
C12: Target | D12: =D2 -> 1.2 | E12: =E11/$D$12 -> 75 | F12: =F11/$D$12 -> 78.75 | G12: 82.6875 | H12: 86.821875 | I12: 91.16296875 | J12: 95.72111719 | K12: 100.507173 | L12: 105.5325317 | M12: 110.8091583 | N12: 116.3496162 | O12: 122.167097 | P12: 128.2754519
C13: Interest | D13: ='Curved DSCR'!D28 -> 0.05 | E13: =NPV(D13,E12:P12) -> 857.1428571
C15: Open | E15: =D17 -> 857.1428571 | F15: =E17 -> 825 | G15: 787.5 | H15: 744.1875 | I15: 694.575 | J15: 638.1407812 | K15: 574.3267031 | L15: 502.5358652 | M15: 422.1301268 | N15: 332.4274749 | O15: 232.6992324 | P15: 122.167097
C16: Less Repayment | E16: =E12-E18 -> 32.14285714 | F16: =F12-F18 -> 37.5 | G16: 43.3125 | H16: 49.6125 | I16: 56.43421875 | J16: 63.81407813 | K16: 71.79083789 | L16: 80.40573844 | M16: 89.70265194 | N16: 99.72824246 | O16: 110.5321354 | P16: 122.167097
C17: Closing | D17: =E13 -> 857.1428571 | E17: =E15-E16 -> 825 | F17: =F15-F16 -> 787.5 | G17: 744.1875 | H17: 694.575 | I17: 638.1407812 | J17: 574.3267031 | K17: 502.5358652 | L17: 422.1301268 | M17: 332.4274749 | N17: 232.6992324 | O17: 122.167097 | P17: -5.258016245e-13
C18: Interest | D18: =D13 -> 0.05 | E18: =$D$18*E15 -> 42.85714286 | F18: =$D$18*F15 -> 41.25 | G18: 39.375 | H18: 37.209375 | I18: 34.72875 | J18: 31.90703906 | K18: 28.71633516 | L18: 25.12679326 | M18: 21.10650634 | N18: 16.62137374 | O18: 11.63496162 | P18: 6.10835485
C20: Sumproduct | D20: =SUMPRODUCT(E16:P16,E10:P10) -> 6732.832638
C21: Avg Loan Life | D21: =SUMPRODUCT(E16:P16,E10:P10)/D17 -> 7.854971411
C23: Equity CF | D23: =D17-D4 -> -42.85714286 | E23: =E11-E16-E18 -> 15 | F23: =F11-F16-F18 -> 15.75 | G23: 16.5375 | H23: 17.364375 | I23: 18.23259375 | J23: 19.14422344 | K23: 20.10143461 | L23: 21.10650634 | M23: 22.16183166 | N23: 23.26992324 | O23: 24.4334194 | P23: 25.65509037
C24: IRR | D24: =IRR(23:23) -> 0.3876718378
